Cogmind - Beta 16.1 @@@ ROGUE MODE // 2026.04.11 @ 19:04:18 Player: beans Result: Destroyed by S-10 Pest with Light Assault Rifle Performance ------------- Evolutions (1) 500 Regions Visited (4) 800 Robots Destroyed (17) 85 Value Destroyed (401) 401 Prototype IDs (0) 0 Alien Tech Used (0) 0 Bonus (0) 0 TOTAL SCORE: 1786 Bonus ------- None Cogmind --------- Core Integrity 0/400 Matter 295/300 Energy 100/100 System Corruption 0% Temperature Cool (0) Movement Treading (160) Location -9/Mines Parts ------- > --- POWER (1) -------- (None) > --- PROPULSION (4) --- Light Treads > --- UTILITY (2) ------ (None) > --- WEAPON (2) ------- Light Assault Rifle Autogun > --- INVENTORY (5) ---- Light Assault Rifle Peak State ------------ > --- POWER ------------ Light Ion Engine > --- PROPULSION ------- Aluminum Leg Aluminum Leg > --- UTILITY ---------- (None) > --- WEAPON ----------- Light Assault Rifle > --- INVENTORY -------- (None) [Rating: 4] Favorites ----------- Power Light Ion Engine Engine Light Ion Engine Propulsion Aluminum Leg Treads Light Treads Leg Aluminum Leg Utility None Weapon Light Assault Rifle Ballistic Gun Light Assault Rifle Build | -11 -10 -10 -9 -9 ------- Run | Yrd Mat Min Mat Min Slots Evolved 2 | . . . 2 . Power . | . . . . . Propulsion 2 | . . . 2 . Utility . | . . . . . Weapon . | . . . . . Parts Attached 9 | 4 . . 5 . Power 1 | 1 . . . . Engine 1 | 1 . . . . Core . | . . . . . Reactor . | . . . . . Propulsion 3 | 2 . . 1 . Treads 1 | . . . 1 . Leg 2 | 2 . . . . Wheel . | . . . . . Hover . | . . . . . Flight . | . . . . . Utility . | . . . . . Device . | . . . . . Storage . | . . . . . Processor . | . . . . . Hackware . | . . . . . Protection . | . . . . . Artifact . | . . . . . Weapon 5 | 1 . . 4 . Energy Gun . | . . . . . Energy Cannon . | . . . . . Ballistic Gun 5 | 1 . . 4 . Ballistic Cannon . | . . . . . Launcher . | . . . . . Special Weapon . | . . . . . Impact Weapon . | . . . . . Slashing Weapon . | . . . . . Piercing Weapon . | . . . . . Special Melee Weapon . | . . . . . Unidentified Prototypes . | . . . . . Parts Lost 5 | . 1 . 4 . Power 1 | . 1 . . . Propulsion 2 | . . . 2 . Utility . | . . . . . Weapon 2 | . . . 2 . Highest Loss Streak 2 | . 1 . 2 . To Critical Strikes . | . . . . . Average Backups 1 | . . 1 2 1 Power . | . . . . . Propulsion . | . . . . . Utility . | . . . . . Weapon 1 | . . 1 1 1 Tool/Special . | . . . . . Unused Backups . | . . . . . Power . | . . . . . Propulsion . | . . . . . Utility . | . . . . . Weapon . | . . . . . Tool/Special . | . . . . . Average Slot Usage (%) 34 | . 55 42 24 33 Engine 2 | . 13 . . . Treads 1 | . . . 1 11 Leg 15 | . 28 28 3 . Ballistic Gun 16 | . 14 14 18 22 Peak Build Rating 4 | 4 4 3 4 4 Average Rating 3 | 3 3 3 2 4 On Entrance 2 | . 4 3 3 4 Avg Prop Armor Cover (%) . | . . . . . Naked Turns . | . . . . . Heaviest Build 6 | 4 4 1 6 . Greatest Support 20 | 20 20 20 20 . Greatest Overweight (x) 1 | . . . 1 . Average Overweight (x) . | . . . . . Largest Inventory Capacity 5 | 5 5 5 5 5 Average Capacity 5 | 5 5 5 5 5 Most Carried 4 | 3 . 2 4 1 Average Carried 1 | . . 1 2 1 Final Capacity 5 | 5 5 5 5 5 Final Carried 2 | . . 2 1 1 Class Distribution -------------------- 100% | Mutant Dominant Class ---------------- Mutant | -10/Materials Mutant | -10/Mines Mutant | -9/Materials Mutant | -9/Mines Resources | -11 -10 -10 -9 -9 ----------- Run | Yrd Mat Min Mat Min Matter Collected 528 | 187 . 37 304 . Remotely . | . . . . . Salvage Created 559 | . . 50 509 . Parts 37 | . . 3 34 . Haulers Intercepted 1 | . . . 1 . Recyclers Shooed . | . . . . . Parts Field Recycled . | . . . . . Retrieved Matter . | . . . . . Parts Self-Destructed . | . . . . . Prevented . | . . . . . Parts Restored . | . . . . . Kills | -11 -10 -10 -9 -9 ------- Run | Yrd Mat Min Mat Min Combat Hostiles Destroyed 15 | . . 4 11 . Guns 15 | . . 4 11 . Classes Destroyed 7 | . . 2 5 . Builder 1 | . . . 1 . Hauler 1 | . . . 1 . Watcher 1 | . . . 1 . Swarmer 6 | . . 3 3 . Grunt 5 | . . . 5 . Sentry 3 | . . . 3 . Assembled 1 | . . 1 . . Best Kill Streak 7 | . . 3 7 . Combat Bots Only 4 | . . 3 4 . Max Kills in Single Turn 1 | . . 1 1 . Gunslinging . | . . . . . Exploded . | . . . . . Melee . | . . . . . Uniques/NPCs Destroyed . | . . . . . Combat | -11 -10 -10 -9 -9 -------- Run | Yrd Mat Min Mat Min Hostile Shots Fired 127 | . 15 19 91 2 Missed 38 | . 7 3 27 1 Hits 89 | . 8 16 64 1 Melee 2 | . . . 2 . Projectile 87 | . 8 16 62 1 Critical Strikes 4 | . 1 . 3 . Damage Taken 1028 | . 109 129 780 10 Core 458 | . 11 47 390 10 Absorbed by Shields . | . . . . . Core Remaining (%) 88 | 100 . 76 . . Volleys Fired 84 | 1 4 17 61 1 Largest 2 | 1 1 1 2 2 Hottest 46 | 20 20 20 46 43 Shots Fired 135 | 1 4 17 111 2 Gun 135 | 1 4 17 111 2 Cannon . | . . . . . Launcher . | . . . . . Special . | . . . . . Kinetic 135 | 1 4 17 111 2 Thermal . | . . . . . Explosive . | . . . . . Electromagnetic . | . . . . . Robot Hit Streak 8 | 1 . 4 8 1 Robot Miss Streak 5 | . 4 5 4 1 Penetration Max . | . . . . . Secondary Targets 2 | . . . 2 . Max Gunslinging Chain 1 | . . . 1 . Shots Hit Robots 77 | 1 . 9 66 1 Core Hits 35 | . . 5 30 . Critical Kills . | . . . . . Critical Parts Destroyed . | . . . . . Critical Strikes . | . . . . . Melee Attacks . | . . . . . Impact . | . . . . . Slashing . | . . . . . Piercing . | . . . . . Sneak Attacks . | . . . . . Combat Hostiles . | . . . . . Follow-up Attacks . | . . . . . Damage Inflicted 869 | 9 . 73 774 13 Guns 869 | 9 . 73 774 13 Cannons . | . . . . . Explosions . | . . . . . Melee . | . . . . . Ramming . | . . . . . Kinetic 869 | 9 . 73 774 13 Thermal . | . . . . . Explosive . | . . . . . Electromagnetic . | . . . . . Impact . | . . . . . Slashing . | . . . . . Piercing . | . . . . . Highest Corruption . | . . . . . Average Corruption . | . . . . . Corruption Purged . | . . . . . Corruption Blocked . | . . . . . Overload Shots . | . . . . . Overflow Damage . | . . . . . Projectiles . | . . . . . Explosions . | . . . . . Melee . | . . . . . Knockbacks . | . . . . . Impact . | . . . . . Kinetic . | . . . . . Secondary . | . . . . . Self-Inflicted Damage . | . . . . . Shots . | . . . . . Rammed . | . . . . . Targets Rammed . | . . . . . Kicked . | . . . . . Crushed . | . . . . . Highest Temperature 22 | . 4 . 22 . Average Temperature 5 | . 4 . 5 . Received Heat Transfer 384 | . 78 . 306 . Siege Activations . | . . . . . Martial Activations . | . . . . . Shielding Activations . | . . . . . Robots Disrupted . | . . . . . Combat Hostiles . | . . . . . Robots Corrupted . | . . . . . Combat Hostiles . | . . . . . Parts Fried . | . . . . . Impact Corruptions . | . . . . . Robots Melted . | . . . . . Combat Hostiles . | . . . . . Parts Melted . | . . . . . Heat Transferred . | . . . . . Parts Sabotaged . | . . . . . Parts Stolen . | . . . . . Parts Stripped . | . . . . . Power Chain Reactions . | . . . . . Alert | -11 -10 -10 -9 -9 ------- Run | Yrd Mat Min Mat Min Maximum Alert Level 1 | . . . 1 . Low Security (%) 83 | 100 100 100 67 100 Level 1 16 | . . . 32 . Level 2 . | . . . . . Level 3 . | . . . . . Level 4 . | . . . . . Level 5 . | . . . . . High Security . | . . . . . Max Security . | . . . . . Peak Influence 267 | . 15 60 267 94 Initial 94 | . . . . 94 Average 70 | . 1 16 130 94 Influence Increases 560 | . 15 70 475 . Destroy 0b10 Robot/C 280 | . . 60 220 . Destroy 0b10 Robot/NC 15 | . . . 15 . Destroy Leader 54 | . . 10 44 . Trap Triggered on 0b10 10 | . 10 . . . Successful Hack 5 | . 5 . . . Destroy Structure 1 | . . . 1 . Lose Combat Pursuer 195 | . . . 195 . Influence Decreases 466 | . 15 70 232 149 Entered New Map 149 | . . . . 149 Time Decay 277 | . 15 70 192 . Lost Part 40 | . . . 40 . Squads Dispatched 4 | . 2 . 2 . Investigation 1 | . 1 . . . Extermination . | . . . . . Reinforcement 3 | . 1 . 2 . Assault . | . . . . . Garrison . | . . . . . Intercept . | . . . . . Searches Triggered . | . . . . . Construction Impeded . | . . . . . Haulers Reinforced . | . . . . . Active Scanning Responses . | . . . . . Cargo Convoy Interrupts . | . . . . . Stealth | -11 -10 -10 -9 -9 --------- Run | Yrd Mat Min Mat Min Distress Signals 4 | . 1 . 3 . Communications Jammed . | . . . . . Distress Signals . | . . . . . Times Spotted 51 | . 9 4 34 4 Peak Tracking Total 10 | . 8 1 10 4 Tactical Retreats 4 | . . . 4 . Traps | -11 -10 -10 -9 -9 ------- Run | Yrd Mat Min Mat Min Traps Triggered . | . . . . . Indirectly . | . . . . . Trap Hack Attempts . | . . . . . Triggered . | . . . . . Disarmed . | . . . . . Reprogrammed 4 | . 4 . . . Reused 1 | . 1 . . . Traps Extracted . | . . . . . Installed . | . . . . . Triggered 1 | . 1 . . . Machines | -11 -10 -10 -9 -9 ---------- Run | Yrd Mat Min Mat Min Machines Disabled . | . . . . . Max in Single Turn . | . . . . . Machines Repaired . | . . . . . Machines Dismantled . | . . . . . Machines Sabotaged . | . . . . . Overloaded Fab Kills . | . . . . . Hacking | -11 -10 -10 -9 -9 --------- Run | Yrd Mat Min Mat Min Machines Accessed 3 | . 1 . 2 . Terminals 3 | . 1 . 2 . Fabricators . | . . . . . Repair Stations . | . . . . . Recycling Units . | . . . . . Scanalyzers . | . . . . . Garrison Access . | . . . . . Total Hacks 6 | . 2 . 4 . Successful 4 | . 2 . 2 . Failed 2 | . . . 2 . Catastrophic 1 | . . . 1 . Database Lockouts . | . . . . . Manual 6 | . 2 . 4 . Terminals 6 | . 2 . 4 . Fabricators . | . . . . . Repair Stations . | . . . . . Recycling Units . | . . . . . Scanalyzers . | . . . . . Garrison Access . | . . . . . Terminal Hacks 2 | . 1 . 1 . Reprogram Traps 2 | . 1 . 1 . Fabricator Hacks . | . . . . . Repair Station Hacks . | . . . . . Recycling Unit Hacks . | . . . . . Scanalyzer . | . . . . . Garrison Access Hacks . | . . . . . Unauthorized Hacks 2 | . 1 . 1 . Terminals 2 | . 1 . 1 . Botnet 2 | . 1 . 1 . Fabricators . | . . . . . Repair Stations . | . . . . . Recycling Units . | . . . . . Scanalyzers . | . . . . . Garrison Access . | . . . . . Data Cores Recovered . | . . . . . Used . | . . . . . Hacking Detections 1 | . . . 1 . Full Trace Events . | . . . . . Feedback Events . | . . . . . Feedback Blocked . | . . . . . Robot Schematics Acquired . | . . . . . Robots Built . | . . . . . Authchips . | . . . . . Time . | . . . . . Total Robot Build Rating . | . . . . . Part Schematics Acquired . | . . . . . Parts Built . | . . . . . Authchips . | . . . . . Time . | . . . . . Total Part Build Rating . | . . . . . Part Studies Acquired . | . . . . . Parts Repaired . | . . . . . Time . | . . . . . Parts Recycled . | . . . . . Recycled Matter . | . . . . . Retrieved Matter . | . . . . . Retrieved Components . | . . . . . Parts Scanalyzed . | . . . . . Part Schematics Acquired . | . . . . . Parts Damaged . | . . . . . Bothacking | -11 -10 -10 -9 -9 ------------ Run | Yrd Mat Min Mat Min Used RIF Installer . | . . . . . Robots Hacked . | . . . . . Non-combat . | . . . . . Combat . | . . . . . Robot Hacks Applied . | . . . . . Relay Couplers Released . | . . . . . Fabnet Peak Effective % . | . . . . . Robots Rewired . | . . . . . Allies Hacked . | . . . . . Hacks Repelled . | . . . . . Allies | -11 -10 -10 -9 -9 -------- Run | Yrd Mat Min Mat Min Total Allies . | . . . . . Largest Group . | . . . . . Highest-Rated Group . | . . . . . Highest-Rated Ally . | . . . . . Total Orders . | . . . . . Ally Attacks . | . . . . . Total Damage . | . . . . . Kills . | . . . . . Allies Corrupted . | . . . . . Allies Melted . | . . . . . Intel | -11 -10 -10 -9 -9 ------- Run | Yrd Mat Min Mat Min Active Infowar (turns) . | . . . . . Robot Analysis Total . | . . . . . Derelict Logs Recovered . | . . . . . Drone Launches . | . . . . . Drone Recoveries . | . . . . . Exploration | -11 -10 -10 -9 -9 ------------- Run | Yrd Mat Min Mat Min Turns Passed 923 | 54 125 282 461 1 Spaces Moved 732 | 43 99 207 383 . Core 309 | 10 . . 299 . Treads 43 | . . . 43 . Legs 380 | 33 99 207 41 . Wheels . | . . . . . Hover . | . . . . . Flight . | . . . . . Fastest Speed 50 | 50 120 120 50 . Average Speed 96 | 103 120 120 77 . Slowest Speed 160 | 120 120 120 160 . Overloaded Moves . | . . . . . Propulsion Burnouts . | . . . . . Robots Hopped . | . . . . . Potential Cave-ins . | . . . . . Cave-ins Triggered . | . . . . . Exploration Rate (%) 20 | 3 30 20 43 4 Regions Visited 4 Branch Regions 2 Pre-discovered Areas . | . . . . . Known Exits Taken . | . . . . . Unknown Exits Taken 4 | 1 1 1 1 . Scrap Searched . | . . . . . Spaces Dug . | . . . . . Terrain Destroyed . | . . . . . Melee . | . . . . . Projectile . | . . . . . AOE . | . . . . . Terrain Rammed . | . . . . . Walls Destroyed . | . . . . . Machines Disabled . | . . . . . Actions | -11 -10 -10 -9 -9 --------- Run | Yrd Mat Min Mat Min Total 836 | 51 102 227 455 1 Wait 2 | . . 2 . . Move 728 | 42 98 206 382 . Hop . | . . . . . Pick Up 10 | 4 . 2 4 . Fast Attach . | . . . . . Attach 10 | 4 . . 6 . Detach 1 | . . . 1 . Swap 1 | . . . 1 . Drop . | . . . . . Fire 84 | 1 4 17 61 1 Melee . | . . . . . Ram . | . . . . . Kick . | . . . . . Crush . | . . . . . Escape Stasis . | . . . . . Rewire . | . . . . . Trap . | . . . . . Miscellaneous . | . . . . . Route ------- -11/Scrapyard -10/Materials -10/Mines -9/Materials (discovered 3 exits: [*Mat x2] / [*Min]) -9/Mines History --------- Turn | Location | Event 4 | -11/Scrapyard | Discovered new exit (range 15) 55 | -11/Scrapyard | Entered Materials 162 | -10/Materials | Discovered new exit (range 15) 180 | -10/Materials | Entered Mines 243 | -10/Mines | Assembled infested the area 248 | -10/Mines | Assisted by a Guerilla fighting off Assembled 303 | -10/Mines | Build established: Mutant 460 | -10/Mines | Discovered new exit (range 3) 462 | -10/Mines | Entered Materials 462 | -9/Materials | Evolved 2 slots: Propulsion x2 639 | -9/Materials | Discovered new exit (range 16) 656 | -9/Materials | Core integrity fell below 50% 764 | -9/Materials | Discovered new exit (range 10) 828 | -9/Materials | Core integrity fell below 20% 909 | -9/Materials | Discovered new exit (range 8) 923 | -9/Materials | Entered Mines 924 | -9/Mines | Destroyed by S-10 Pest with Light Assault Rifle Last Messages --------------- Acquired 7 matter. G-47 Trooper destroyed. K-01 Serf collects debris. Acquired 3 matter. G-34 Mercenary destroyed. K-01 Serf collects debris. Hvy. Assault Rifle destroyed. K-01 Serf collects debris. G-34 Mercenary destroyed. K-01 Serf collects debris. Acquired 45 matter. K-01 Serf collects debris. G-34 Mercenary destroyed. K-01 Serf collects debris. Acquired 15 matter. EXIT=FOUND LOCATION=UNKNOWN GOAL=ESCAPE Something is scanning the area. S-10 Pest destroyed. Map ----- +----------------------------------------------------+ | ?????????????????????????????????? | | ?????????????????????????????????? | | ?????????????????????????????????? | | ?????????????????????????????????? | | ?????????????????????????????????? | | ?????????????????????????????????? | | ?????????????????????????????????? | | ?????????????????????????????????? | | ?????????????????????????????????? | | ?????????????????????????????????? | | ?????????????????????????????????? | | ?????????????????????????????????? | | ?????????????????????????????????? | | ?????????????????????????????????? | | ?????????????????????????????????? | | ?????????????????????????????????? | | ?????????????????????????????????? | | ?????????????????????????????????? | | ?????????????????????????????????? | | ???????????????????????????#?????? | | ?????????????????????????? #?????? | | ?????????????????????????? #?????? | | ?????????????????????????? #?????? | | ????????????????????????## #?????? | | ???????????????????????## ##????? | | ???????????????????????# @ #????? | | ???????????????????? #???? | | ?????????????????# #???? | | ?????????????????### #???? | | ???????????????????## =% #???? | | ????????????????????# s ##???? | | ????????????????????# s ##????? | | ????????????????????# s#?????? | | ????????????????????## #?????? | | ?????????????????????### ##?????? | | ???????????????????????###???????? | | ?????????????????????????????????? | | ?????????????????????????????????? | | ?????????????????????????????????? | | | | | | | | | | | | | | | | | | | | | | | +----------------------------------------------------+ Best States ------------- Heat Dissipation 28 Energy Generation 10 Energy Capacity 125 Matter Stores 300 Matter Capacity 300 Sight Range 16 Terrain Scan Density 10 Evasion (%) 55 Recoil Reduction 1 Item Schematics ----------------- None Robot Schematics ------------------ None Fabricated ------------ Nothing Repaired ---------- Nothing Studied --------- None Alien Tech Used ----------------- None Achievements -------------- None Challenges ------------ None Game ------ Seed AntigravHellfireBeamcaster Manual? 0 Play Time 00:10:29 Cumulative 261.4 hours Start 2026.04.11 @ 13:08:10 End 2026.04.11 @ 19:04:18 Sessions 1 Manual Loads 0 Difficulty Rogue Special Mode None Game No. 694 Rogue 692 Adventurer 2 Explorer 0 Win Type - Total 0 Types 0/0/0/0/0/0/0/0/0/0 Lore% 67 Gallery% 63 Achievement% 43 Wizard Run 0 Options --------- Layout 2 ASCII 0 Keyboard 0 Movement Mouse Keybinds 0 Fullscreen 1 Font 24/Smallcaps Map View 50x44 Zoom Use 0% Tactical HUD 0 Map Filters NONE Filters NONE Steam 1 RUN: b6cf5161-d848-4257-a03d-830a0579daf3